{"text_format":"3","workbook":"xlsx","n_sheets":2,"sheets":["Sheet1","Sheet2"],"read":"whole","date_system":"1900"}

{"sheet":"Sheet1","index":0,"n_rows":126,"n_cols":8,"rows_kept":126,"merged":[[0,0,0,1],[1,0,1,7],[2,0,2,7]]}
["附件1"]
[" 2022年立项的校级研究生教改项目清单"]
["不包含2022年立项的1年期课程思政标杆课、MOOCs课程及线上线下课程建设项目"]
["序号","项目编号","项目类别","项目名称","负责人","所在单位","资助金额\n（万元）","首次划拨\n金额     （万元）"]
[1,"JXGG22001","思政必修课","《中国马克思主义与当代》课程质量提升研究","郭洪水","马克思主义学院",3,{"$f":"G5/2","v":1.5}]
[2,"JXGG22002","思政必修课","《新时代中国特色社会主义理论与实践》课程教学体系创新研究","方建斌","马克思主义学院",3,{"$f":"G6/2","v":1.5}]
[3,"JXGG22003","思政必修课","《马克思主义与社会科学方法论》教学模式改革创新研究","殷旭辉","马克思主义学院",3,1.5]
[4,"JXGG22004","思政必修课","《自然辩证法概论》课程“探究式教学模式”的实践与研究","何景毅","马克思主义学院",3,1.5]
[5,"JXGG22050","精品示范课程","《公司金融》精品示范课程","牛荣","经济管理学院",3,1.5]
[6,"JXGG22051","精品示范课程","农林专业特色《微生物研究法》课程建设","韦小敏","资源环境学院",3,1.5]
[7,"JXGG22052","精品示范课程","以学生需求为导向的《植物分子生物学研究进展》教学改革探索","安丽君","生命科学学院",3,1.5]
[8,"JXGG22053","精品示范课程","《现代分离工程（含实验）》精品示范课程建设","侯文洁","生命科学学院",3,1.5]
[9,"JXGG22054","精品示范课程","乡村振兴背景下《农业区域发展与规划》课程建设","冯永忠","农学院",3,1.5]
[10,"JXGG22055","精品示范课程","气象水文学跨学科新型研究生教育模式探索","宋小燕","水利与建筑工程学院",3,1.5]
[11,"JXGG22056","精品示范课程","“科研赋能教学”模式下《学术英语写作与交流》精品课程建设","石宝峰","经济管理学院",3,1.5]
[12,"JXGG22057","精品示范课程","《生物有机化学精品示范课》精品示范课程建设","耿会玲","化学与药学院",3,1.5]
[13,"JXGG22058","精品示范课程","《基因工程原理与技术》课程体系的改革","张大鹏","生命科学学院",3,1.5]
[14,"JXGG22059","精品示范课程","《产业经济学II》精品示范课程建设","张晓宁","经济管理学院",3,1.5]
[15,"JXGG22060","精品示范课程","以\"创新思维与实践能力培养\"为核心的《高级种子学》精品示范课程建设","陈明训","农学院",3,1.5]
[16,"JXGG22061","精品示范课程","《植物次生代谢研究进展》示范课程建设","麻鹏达","生命科学学院",3,1.5]
[17,"JXGG22062","精品示范课程","《现代兽医病理学》精品示范课","杜谦","动物医学院",3,1.5]
[18,"JXGG22063","精品示范课程","《中国科学技术史》精品示范课程建设","赵越云","人文社会发展学院",3,1.5]
[19,"JXGG22064","精品示范课程","《新能源技术》精品示范课程建设","毛秀丽","水利与建筑工程学院",3,1.5]
[20,"JXGG22065","精品示范课程","《分子遗传学》精品示范课程建设","蓝贤勇","动物科技学院",3,1.5]
[21,"JXGG22066","精品示范课程","数字经济下《会计学》精品课程建设","雷玲","经济管理学院",3,1.5]
[22,"JXGG22067","精品示范课程","MTI《非文学翻译理论与实践》精品示范课程建设","杨梅","语言文化学院",3,1.5]
[23,"JXGG22068","精品示范课程","《高级生物信息学》精品示范课程建设","马闯","生命科学学院",3,1.5]
[24,"JXGG22069","精品示范课程"," 《减脂塑形》精品示范课程建设"," 王艳","体育部",3,1.5]
[25,"JXGG22070","新开课","混合式教学模式下的《设计概论》核心课程建设","李侃侃","风景园林艺术学院",3,1.5]
[26,"JXGG22071","新开课","产业需求驱动的“食品生物工程”课程体系构建与实践","单媛媛","食品科学与工程学院",3,1.5]
[27,"JXGG22072","新开课","项目制特色课程《食源性致病菌》的建设与实践","石超","食品科学与工程学院",3,1.5]
[28,"JXGG22073","新开课","设计学学术型硕士研究生《外国设计史》核心课程建设","孙静","风景园林艺术学院",3,1.5]
[29,"JXGG22074","新开课","森林资源经济与管理","龚直文","经济管理学院",3,1.5]
[30,"JXGG22075","新开课","《国民经济统计》新开课","陈晓楠","经济管理学院",3,1.5]
[31,"JXGG22076","新开课","《设计史论》新开课程建设项目","蔚一潇","风景园林艺术学院",3,1.5]
[32,"JXGG22077","新开课","《中华农业文化外译》","张晓容","语言文化学院",3,1.5]
[33,"JXGG22078","新开课","《思想政治教育前沿》课程建设研究","赵志业","马克思主义学院",3,1.5]
[34,"JXGG22079","新开课","艺术设计领域《设计方法》核心课建设","史承勇","风景园林艺术学院",3,1.5]
[35,"JXGG22080","新开课","《国际贸易学》","邵砾群","经济管理学院",3,1.5]
[36,"JXGG22081","新开课","《无人机应用》","金琳","水利与建筑工程学院",3,1.5]
[37,"JXGG22082","新开课","《财务报表分析》","孔荣","经济管理学院",3,1.5]
[38,"JXGG22083","新开课","项目制主导下的艺术硕士（MFA）设计实践核心课程建设与改革","娄钢","风景园林艺术学院",3,1.5]
[39,"JXGG22084","新开课","校企合作驱动的《食品绿色加工》专业学位研究生课程培养模式探索","冯宪超","食品科学与工程学院",3,1.5]
[40,"JXGG22085","新开课","《中国设计史》核心课程建设","张瑞超","风景园林艺术学院",3,1.5]
[41,"JXGG22086","新开课","美育在研究生教育中的功能及作用研究","赵  清","综合素质教育学院",3,1.5]
[42,"JXGG22087","新开课","《世界科学技术史课程建设》","程至杰","人文社会发展学院",3,1.5]
[43,"JXGG22088","新开课","《森林经理学理论与方法》","顾丽","林学院",3,1.5]
[44,"JXGG22089","新开课","新要求下的数论课程建设","王婷婷","理学院",3,1.5]
[45,"JXGG22090","新开课","《动物营养代谢病》课程建设","王建国","动物医学院",3,1.5]
[46,"JXGG22091","新开课","《先进材料化学》课程建设","涂琴","化学与药学院",3,1.5]
[47,"JXGG22092","新开课","《农业与食品生物物理学》","朱杰","理学院",3,1.5]
[48,"JXGG22093","新开课","《碳中和理论与技术》课程建设","王效琴","资源环境学院",3,1.5]
[49,"JXGG22094","新开课","《高等光学》课程建设","任文艺","理学院",3,1.5]
[50,"JXGG22095","新开课","《高级细胞生物学》新开课程建设","潘传英","动物科技学院",3,1.5]
[51,"JXGG22096","新开课","《昆虫生态学》核心课程建设","胡祖庆","植物保护学院",3,1.5]
[52,"JXGG22097","新开课","《科研伦理与学术规范》","林雁冰","生命科学学院",3,1.5]
[53,"JXGG22098","新开课","《Aspen plus化工流程模拟》课程建设","郑冀鲁","林学院",3,1.5]
[54,"JXGG22099","新开课","《高级林业概论》课程的案例式教学法探索","赵忠","林学院",3,1.5]
[55,"JXGG22100","新开课","《生物统计学》课程建设","廖明帜","生命科学学院",3,1.5]
[56,"JXGG22101","新开课","《草原信息化与管理》","刘洋洋","草业与草原学院",3,1.5]
[57,"JXGG22102","新开课","种群生态学与传染病学中的数学模型","张良","理学院",3,1.5]
[58,"JXGG22103","新开课","《现代化工催化技术》","王佳","林学院",3,1.5]
[59,"JXGG22104","新开课","《蛋白质研究实验原理与技术》","韩召奋","生命科学学院",3,1.5]
[60,"JXGG22105","新开课","药学专业《新药研究与申报》研究生课程建设","杨维霞","化学与药学院",3,1.5]
[61,"JXGG22106","新开课","《设计研究方法》核心课程建设","曹宁","风景园林艺术学院",3,1.5]
[62,"JXGG22107","新开课","《农业发展与国家安全问题研究》","肖燮宇","综合素质教育学院",3,1.5]
[63,"JXGG22108","教材编写","《森林灾害防控》","王得祥","林学院",0.5,0.25]
[64,"JXGG22109","教材编写","《渔业案例研讨与分析》","吉红","动物科技学院",0.5,0.25]
[65,"JXGG22110","教材编写","《现代地理信息系统技术》","张青峰","资源环境学院",0.5,0.25]
[66,"JXGG22111","教材编写","《生化与基因操作技术》","王敦","植物保护学院",0.5,{"$f":"G70/2","v":0.25}]
[67,"JXGG22112","教材编写","《高等土力学》","党进谦","水利与建筑工程学院",0.5,0.25]
[68,"JXGG22113","教材编写","《实验室安全技术》","张静","园艺学院",0.5,0.25]
[69,"JXGG22114","教材编写","《农业信息智能处理实践教程》","吴婷婷","机电学院",0.5,0.25]
[70,"JXGG22115","教材编写","《农业碳中和概论》","刘梦云","资源环境学院",0.5,0.25]
[71,"JXGG22116","教材编写","《高等工程力学》","杨创创","机电学院",0.5,0.25]
[72,"JXGG22117","教材编写","《水力机组智能故障诊断理论与方法》","董玮","水利与建筑工程学院",0.5,0.25]
[73,"JXGG22118","教材编写","《土壤侵蚀力学》","高建恩","水土保持研究所",0.5,0.25]
[74,"JXGG22119","教材编写","《生态规划设计》","王旭辉","风景园林艺术学院",0.5,0.25]
[75,"JXGG22120","教材编写","《高等流体力学》","张新燕","水利与建筑工程学院",0.5,0.25]
[76,"JXGG22121","教材编写","《高级葡萄酒微生物学》","杨晓兵","葡萄酒学院",0.5,0.25]
[77,"JXGG22122","教材编写","《树木非生物逆境生理》","张胜","林学院",0.5,0.25]
[78,"JXGG22123","教材编写","《草地生物学》（全英文）学术型研究生教材建设","高景慧","草业与草原学院",0.5,0.25]
[79,"JXGG22124","教材编写","《细胞生物学（方法与技术）》","李绍军","生命科学学院",0.5,0.25]
[80,"JXGG22125","教材编写","《作物信息学》","王瑞","农学院",0.5,0.25]
[81,"JXGG22126","专业学位案例库","《林业技术推广》课程案例库","刘光哲","林学院",3,1.5]
[82,"JXGG22127","专业学位案例库","《现代植物生产理论与技术》案例库建设","冯佰利","农学院",3,1.5]
[83,"JXGG22128","专业学位案例库","《现代水产动物医学》课程案例库建设","凌飞","动物科技学院",3,1.5]
[84,"JXGG22129","专业学位案例库","家畜高效繁育案例分析","胡建宏","动物科技学院",3,1.5]
[85,"JXGG22130","专业学位案例库","生态规划设计案例库","王开","风景园林艺术学院",3,1.5]
[86,"JXGG22131","专业学位案例库","现代草业科学与技术案例库","寇建村","草业与草原学院",3,1.5]
[87,"JXGG22132","专业学位案例库","基于《兽医病原学》课程中的动物传染病病原案例库建设","许信刚","动物医学院",3,1.5]
[88,"JXGG22133","专业学位案例库","跨越时空的缩影-基于复位摄影技术探索城市生态和冰川变化","何海龙","资源环境学院",3,1.5]
[89,"JXGG22134","专业学位案例库","《生物源农药》课程案例库","祝传书","植物保护学院",3,1.5]
[90,"JXGG22135","专业学位案例库","新兽药创制与应用案例库建设","刘晓强","动物医学院",3,1.5]
[91,"JXGG22136","专业学位案例库","《绿色农药研究与应用技术》课程导向的案例库建设","冯俊涛","植物保护学院",3,1.5]
[92,"JXGG22137","专业学位案例库","艺术硕士设计创意与表现教学案例库","李志国","风景园林艺术学院",3,1.5]
[93,"JXGG22138","专业学位案例库","“互联网+教学”混合模式下对《动物毒理学》案例库的开发与应用","吴晨晨","动物医学院",3,1.5]
[94,"JXGG22139","专业学位案例库","高级氧化技术在典型难降解有机废水处理中的应用案例","屈广周","资源环境学院",3,1.5]
[95,"JXGG22140","专业学位案例库","乡村振兴背景下资源与环境专业硕士工程案例库建设","王权","资源环境学院",3,1.5]
[96,"JXGG22141","专业学位案例库","《高级生物化学》教学案例库建设","徐全乐","生命科学学院",3,1.5]
[97,"JXGG22142","专业学位案例库","草业科学导论课程案例库建设实践","高景慧","草业与草原学院",3,1.5]
[98,"JXGG22143","专业学位案例库","数字农业运营管理典型案例","阮俊虎","经济管理学院",3,1.5]
[99,"JXGG22144","专业学位案例库","现代农业创新与乡村振兴战略管理案例","刘超","经济管理学院",3,1.5]
[100,"JXGG22145","专业学位案例库","基于项目驱动的深度学习教学案例库建设","刘斌","信息工程学院",3,1.5]
[101,"JXGG22146","专业学位案例库","社会工作教学案例与课程设计","张红","人文社会发展学院",3,1.5]
[102,"JXGG22147","专业学位案例库","法律硕士专业课教学案例库建设","徐春成","人文社会发展学院",3,1.5]
[103,"JXGG22148","专业学位案例库","水利工程专业学位课程教学案例库——水电站与泵站工程过渡过程计算技术应用与推广","许贝贝","水利与建筑工程学院",3,1.5]
[104,"JXGG22149","专业学位案例库","案例研讨应用于机械专硕“研究方法与论文写作”课的实践探索","令博","机电学院",3,1.5]
[105,"JXGG22150","专业学位案例库","以课程案例建设为主线食品类专业《知识产权》课程教学改革与实践","于修烛","食品科学与工程学院",3,1.5]
[106,"JXGG22151","专业学位案例库","西北农林科技大学数字农业案例库","渠美","经济管理学院",3,1.5]
[107,"JXGG22152","专业学位案例库","土木水利专业学位研究生课程案例库","侯天顺","水利与建筑工程学院",3,1.5]
[108,"JXGG22153","专业学位案例库","乡村振兴背景下农产品物流保鲜案例库建设","寇莉萍","食品科学与工程学院",3,1.5]
[109,"JXGG22154","专业学位案例库","《经济法专题》案例库","张祖庆","人文社会发展学院",3,1.5]
[110,"JXGG22155","专业学位案例库","《组织行为学》课程案例库建设","梁洪松","经济管理学院",3,1.5]
[111,"JXGG22156","专业学位案例库","涉农公共管理课程案例库建设","王兵","人文社会发展学院",3,1.5]
[112,"JXGG22157","专业学位案例库","《食品毒理学》课程案例库建设与实践","王新","食品科学与工程学院",3,1.5]
[113,"JXGG22158","专业学位案例库","《农业项目投资与评估》案例库建设","王永强","经济管理学院",3,1.5]
[114,"JXGG22159","专业学位案例库","乡村文化振兴与文化治理案例建设","杨学军","人文社会发展学院",3,1.5]
[115,"JXGG22206","专业学位案例库","反刍动物疾病病理诊断案例库建设","黄勇","动物医学院",3,1.5]
[116,"JXGG22207","专业学位案例库","手性药物的合成案例库建设","常明欣","化学与药学院",3,1.5]
[117,"JXGG22208","精品示范课程","《现代果树科学进展》的课程改革方案","管清美","园艺学院",3,1.5]
[118,"JXGG22209","教材编写","《水资源与可持续农业》教材编写","卓拉","水土保持研究所",0.5,0.25]
[119,"JXGG22210","教改研究","新时代农林高校马克思主义理论学科硕士研究生科研能力提升路径研究","高小升","马克思主义学院",3,1.5]
[120,"JXGG22211","教改研究","基于数学建模的学科交叉人才培养探究","王婷婷","理学院",3,1.5]
[121,"JXGG22212","教改研究","“问题再现”教学设计在现代蔬菜科学进展中的探索","李征","园艺学院",3,1.5]
[122,"JXGG22213","教改研究","我校研究生体育教学的探索研究","杜养军","体育部",3,1.5]

{"sheet":"Sheet2","index":1,"n_rows":0,"n_cols":0,"rows_kept":0}